fUSD/lending_fUSD_20241023
["ID","MTS","AMOUNT","RATE_DAILY","PERIOD"]
[340693797,1729691443812,-500.0,0.00049989,120]
[340693798,1729691443822,-506.44236923,0.00049989,120]
[340693799,1729691443831,-500.0,0.00049989,120]
[340693800,1729691443841,-500.0,0.00049989,120]
[340693801,1729691443850,-500.0,0.00049989,120]
[340693802,1729691443860,-500.0,0.00049989,120]
[340693803,1729691443870,-500.0,0.00049989,120]
[340693804,1729691443879,-502.06298246,0.00049989,120]
[340693805,1729691443888,-500.0,0.00049989,120]
[340693806,1729691443898,-500.0,0.00049989,120]
[340693807,1729691443907,-506.03285354,0.00049989,30]
[340693808,1729691443917,-500.0,0.00049989,120]
[340693809,1729691443926,-309.52574299,0.00049989,120]
[340693810,1729691443935,-500.0,0.00049989,120]
[340693811,1729691443945,-500.0,0.00049989,120]
[340693812,1729691443955,-500.0,0.00049989,120]
[340693813,1729691443964,-500.0,0.00049989,120]
[340693814,1729691443974,-500.0,0.00049989,120]
[340693815,1729691443985,-515.67605996,0.00049989,120]
[340693816,1729691443994,-500.0,0.00049989,120]
[340693817,1729691444004,-500.0,0.00049989,120]
[340693818,1729691444014,-500.0,0.00049989,120]
[340693819,1729691444025,-500.0,0.00049989,120]
[340693820,1729691444035,-500.0,0.00049989,120]
[340693821,1729691444045,-500.0,0.00049989,120]
[340693822,1729691444054,-285.39754067,0.00049989,120]
[340693823,1729691444064,-520.98304174,0.00049989,120]
[340693824,1729691444073,-657.97,0.00049989,120]
[340693825,1729691444083,-500.0,0.00049989,120]
[340693826,1729691444093,-500.0,0.00049989,120]
[340693827,1729691444102,-502.61122584,0.00049989,120]
[340693828,1729691444112,-2582.81,0.00049989,120]
[340693829,1729691444122,-500.0,0.00049989,120]
[340693830,1729691444131,-500.0,0.00049989,120]
[340693831,1729691444141,-500.0,0.00049989,120]
[340693832,1729691444150,-500.0,0.00049989,120]
[340693833,1729691444159,-500.0,0.00049989,120]
[340693834,1729691444170,-500.0,0.00049989,120]
[340693835,1729691444179,-574.76,0.00049989,120]
[340693836,1729691444188,-500.0,0.00049989,2]
[340693837,1729691444198,-500.0,0.00049989,120]
[340693838,1729691444208,-500.0,0.00049989,120]
[340693839,1729691444218,-500.0,0.00049989,120]
[340693840,1729691444227,-300.0,0.00049989,120]
[340693841,1729691444239,-500.0,0.00049989,120]
[340693842,1729691444248,-500.0,0.00049989,120]
[340693843,1729691444257,-500.0,0.00049989,120]
[340693844,1729691444266,-500.0,0.00049989,120]
[340693845,1729691444276,-500.0,0.00049989,120]
[340693846,1729691444285,-500.0,0.00049989,120]
[340693847,1729691444295,-338.13457052,0.00049989,120]
[340693848,1729691444305,-500.0,0.00049989,120]
[340693849,1729691444315,-500.0,0.00049989,120]
[340693850,1729691444325,-500.0,0.00049989,120]
[340693851,1729691444335,-2258.71,0.00049989,120]
[340693852,1729691444346,-500.0,0.00049989,120]
[340693853,1729691444355,-529.68,0.00049989,120]
[340693854,1729691444364,-500.0,0.00049989,120]
[340693855,1729691444374,-500.0,0.00049989,120]
[340693856,1729691444384,-500.0,0.00049989,120]
[340693857,1729691444394,-500.0,0.00049989,120]
[340693858,1729691444404,-500.0,0.00049989,120]
[340693859,1729691444414,-500.0,0.00049989,120]
[340693860,1729691444655,-791.35,0.00049989,120]
[340693861,1729691444666,-500.0,0.00049989,120]
[340693862,1729691444675,-500.0,0.00049989,90]
[340693863,1729691444686,-1602.66,0.00049989,120]
[340693864,1729691444696,-500.0,0.00049989,120]
[340693865,1729691444707,-500.0,0.00049989,120]
[340693866,1729691444717,-500.0,0.00049989,120]
[340693867,1729691444727,-500.0,0.00049989,120]
[340693868,1729691444739,-500.0,0.00049989,120]
[340693869,1729691444749,-500.0,0.00049989,120]
[340693870,1729691444759,-500.0,0.00049989,120]
[340693871,1729691444771,-500.0,0.00049989,120]
[340693872,1729691444781,-500.0,0.00049989,120]
[340693873,1729691444792,-511.92,0.00049989,120]
[340693874,1729691444802,-500.0,0.00049989,120]
[340693875,1729691444820,-910.87,0.00049989,120]
[340693876,1729691444831,-500.0,0.00049989,120]
[340693877,1729691444842,-500.0,0.00049989,120]
[340693878,1729691444852,-500.0,0.00049989,120]
[340693879,1729691444864,-2357.8,0.00049989,120]
[340693880,1729691444876,-500.0,0.00049989,120]
[340693881,1729691444887,-980.54,0.00049989,120]
[340693882,1729691444898,-512.97199934,0.00049989,120]
[340693883,1729691444909,-500.0,0.00049989,120]
[340693884,1729691444920,-500.0,0.00049989,120]
[340693885,1729691444932,-500.0,0.00049989,120]
[340693886,1729691444943,-152.068542,0.00049989,120]
[340693887,1729691444954,-500.0,0.00049989,120]
[340693888,1729691444964,-500.0,0.00049989,120]
[340693889,1729691444974,-577.99,0.00049989,120]
[340693890,1729691444986,-500.0,0.00049989,120]
[340693891,1729691444996,-151.441453,0.00049989,120]
[340693892,1729691445006,-151.0,0.00049989,120]
[340693893,1729691445017,-1082.92,0.00049989,120]
[340693894,1729691445027,-500.0,0.00049989,120]
[340693895,1729691445037,-500.0,0.00049989,120]
[340693896,1729691445047,-500.0,0.00049989,120]
[340693897,1729691445058,-500.0,0.00049989,120]
[340693898,1729691445068,-500.0,0.00049989,120]
[340693899,1729691445079,-500.0,0.00049989,120]
[340693900,1729691445089,-500.0,0.00049989,120]
[340693901,1729691445100,-500.0,0.00049989,120]
[340693902,1729691445110,-500.0,0.00049989,120]
[340693903,1729691445122,-151.0,0.00049989,120]
[340693904,1729691445133,-151.541175,0.00049989,120]
[340693905,1729691445143,-500.0,0.00049989,120]
[340693906,1729691445153,-500.0,0.00049989,120]
[340693907,1729691445163,-500.0,0.00049989,120]
[340693908,1729691445174,-500.0,0.00049989,120]
[340693909,1729691445184,-500.0,0.00049989,120]
[340693910,1729691445195,-500.0,0.00049989,120]
[340693911,1729691445205,-500.0,0.00049989,120]
[340693912,1729691445216,-500.0,0.00049989,120]
[340693913,1729691445226,-500.0,0.00049989,120]
[340693914,1729691445238,-732.32,0.00049989,120]
[340693915,1729691445248,-695.49,0.00049989,120]
[340693916,1729691445258,-151.0,0.00049989,120]
[340693917,1729691445268,-500.0,0.00049989,120]
[340693918,1729691445278,-500.0,0.00049989,120]
[340693919,1729691445290,-152.251417,0.00049989,120]
[340693920,1729691445300,-500.0,0.00049989,120]
[340693921,1729691445311,-500.0,0.00049989,120]
[340693922,1729691445321,-593.33886271,0.00049989,120]
[340693923,1729691445332,-500.0,0.00049989,120]
[340693924,1729691445342,-500.0,0.00049989,120]
[340693925,1729691445352,-151.0,0.00049989,120]
[340693926,1729691445362,-556.77,0.00049989,120]
[340693927,1729691445373,-855.28,0.00049989,120]
[340693928,1729691445383,-500.0,0.00049989,120]
[340693929,1729691445393,-500.0,0.00049989,120]
[340693930,1729691445405,-500.0,0.00049989,120]
[340693931,1729691445415,-956.59,0.00049989,120]
[340693932,1729691445426,-587.57,0.00049989,120]
[340693933,1729691445437,-500.0,0.00049989,120]
[340693934,1729691445447,-500.0,0.00049989,120]
[340693935,1729691445458,-500.0,0.00049989,120]
[340693936,1729691445469,-609.38,0.00049989,120]
[340693937,1729691445479,-500.0,0.00049989,120]
[340693938,1729691445491,-500.0,0.00049989,120]
[340693939,1729691445501,-500.0,0.00049989,120]
[340693940,1729691445511,-500.0,0.00049989,120]
[340693941,1729691445522,-500.0,0.00049989,120]
[340693942,1729691445533,-500.0,0.00049989,120]
[340693943,1729691445544,-523.8,0.00049989,120]
[340693944,1729691445555,-511.89,0.00049989,120]
[340693945,1729691445565,-500.0,0.00049989,120]
[340693946,1729691445578,-500.0,0.00049989,120]
[340693947,1729691445588,-500.0,0.00049989,120]
[340693948,1729691445599,-527.61,0.00049989,120]
[340693949,1729691445609,-500.0,0.00049989,120]
[340693950,1729691445619,-500.0,0.00049989,120]
[340693951,1729691445629,-570.08784745,0.00049989,120]
[340693952,1729691445639,-500.0,0.00049989,120]
[340693953,1729691445649,-500.0,0.00049989,120]
[340693954,1729691445661,-500.0,0.00049989,120]
[340693956,1729691445671,-500.0,0.00049989,120]
[340693958,1729691445681,-174.19768975,0.00049989,120]
[340693960,1729691445691,-500.0,0.00049989,120]
[340693961,1729691445701,-500.0,0.00049989,120]
[340693962,1729691445711,-1263.77,0.00049989,120]
[340693963,1729691445721,-500.0,0.00049989,120]
[340693964,1729691445731,-500.0,0.00049989,120]
[340693965,1729691445743,-500.0,0.00049989,120]
[340693966,1729691445753,-500.0,0.00049989,120]
[340693968,1729691445763,-500.0,0.00049989,120]
[340693971,1729691445773,-500.0,0.00049989,120]
[340693974,1729691445782,-500.0,0.00049989,120]
[340693978,1729691445792,-500.0,0.00049989,120]
[340693981,1729691445802,-500.0,0.00049989,120]
[340693983,1729691445811,-500.0,0.00049989,120]
[340693986,1729691445820,-500.0,0.00049989,120]
[340693988,1729691445829,-500.0,0.00049989,120]
[340693993,1729691445839,-500.0,0.00049989,120]
[340693994,1729691445849,-500.0,0.00049989,120]
[340693996,1729691445858,-500.0,0.00049989,120]
[340693999,1729691445868,-500.0,0.00049989,120]
[340694002,1729691445879,-500.0,0.00049989,120]
[340694005,1729691445888,-501.67138506,0.00049989,120]
[340694009,1729691445897,-500.0,0.00049989,120]
[340694012,1729691445907,-500.0,0.00049989,120]
[340694014,1729691445917,-500.0,0.00049989,120]
[340694017,1729691445926,-500.0,0.00049989,120]
[340694019,1729691445935,-500.0,0.00049989,120]
[340694022,1729691445945,-500.0,0.00049989,120]
[340694025,1729691445955,-570.29838171,0.00049989,120]
[340694029,1729691445964,-5503.91,0.00049989,120]
[340694032,1729691445974,-500.0,0.00049989,120]
[340694035,1729691445983,-500.0,0.00049989,120]
[340694039,1729691445996,-500.0,0.00049989,120]
[340694040,1729691446006,-500.0,0.00049989,120]
[340694043,1729691446015,-500.0,0.00049989,120]
[340694047,1729691446034,-151.0,0.00049989,120]
[340694050,1729691446046,-500.0,0.00049989,120]
[340694052,1729691446056,-500.0,0.00049989,120]
[340694053,1729691446065,-500.0,0.00049989,120]
[340694054,1729691446076,-500.0,0.00049989,120]
[340694055,1729691446086,-500.0,0.00049989,120]
[340694056,1729691446096,-827.35,0.00049989,120]
[340694057,1729691446106,-500.0,0.00049989,120]
[340694058,1729691446116,-500.0,0.00049989,120]
[340694059,1729691446128,-500.0,0.00049989,120]
[340694060,1729691446139,-500.0,0.00049989,120]
[340694061,1729691446150,-604.33,0.00049989,120]
[340694062,1729691446160,-500.0,0.00049989,120]
[340694063,1729691446170,-500.0,0.00049989,120]
[340694064,1729691446180,-500.0,0.00049989,120]
[340694065,1729691446190,-500.0,0.00049989,120]
[340694066,1729691446200,-500.0,0.00049989,120]
[340694067,1729691446210,-500.0,0.00049989,120]
[340694068,1729691446220,-304.75919862,0.00049989,120]
[340694069,1729691446230,-500.0,0.00049989,120]
[340694070,1729691446241,-500.0,0.00049989,120]
[340694071,1729691446251,-500.0,0.00049989,120]
[340694072,1729691446261,-500.0,0.00049989,120]
[340694073,1729691446271,-500.0,0.00049989,120]
[340694074,1729691446281,-500.0,0.00049989,120]
[340694075,1729691446290,-500.0,0.00049989,120]
[340694077,1729691446300,-500.0,0.00049989,120]
[340694079,1729691446310,-500.0,0.00049989,120]
[340694081,1729691446320,-500.0,0.00049989,120]
[340694083,1729691446330,-538.75,0.00049989,120]
[340694085,1729691446340,-1134.89,0.00049989,120]
[340694086,1729691446350,-512.86,0.00049989,120]
[340694087,1729691446360,-1213.11,0.00049989,120]
[340694088,1729691446369,-521.83,0.00049989,120]
[340694089,1729691446379,-2147.87,0.00049989,120]
[340694090,1729691446389,-1080.65,0.00049989,120]
[340694091,1729691446398,-500.0,0.00049989,120]
[340694092,1729691446407,-500.0,0.00049989,120]
[340694093,1729691446417,-500.0,0.00049989,120]
[340694094,1729691446427,-500.0,0.00049989,120]
[340694095,1729691446436,-556.45,0.00049989,120]
[340694096,1729691446446,-1934.131835,0.00049989,120]
[340694097,1729691446456,-500.0,0.00049989,120]
[340694098,1729691446465,-1934.131835,0.00049989,120]
[340694099,1729691446475,-3205.68,0.00049989,120]
[340694100,1729691446484,-500.0,0.00049989,120]
[340694101,1729691446495,-500.0,0.00049989,120]
[340694102,1729691446505,-939.73,0.00049989,120]
[340694103,1729691446514,-541.4,0.00049989,120]
[340694104,1729691446523,-597.57,0.00049989,120]
[340694105,1729691446533,-500.0,0.00049989,120]
[340694106,1729691446542,-500.0,0.00049989,120]
[340694107,1729691446552,-500.0,0.00049989,120]
[340694108,1729691446561,-2697.86,0.00049989,120]
[340694109,1729691446571,-500.0,0.00049989,120]
[340694110,1729691446580,-500.0,0.00049989,120]
[340694111,1729691446590,-500.0,0.00049989,120]
[340694112,1729691446599,-500.0,0.00049989,120]
[340694113,1729691446608,-500.0,0.00049989,120]
[340694114,1729691446618,-500.0,0.00049989,120]
[340694115,1729691446627,-851.87,0.00049989,120]
[340694116,1729691446636,-500.0,0.00049989,14]
[340694117,1729691446645,-1936.62,0.00049989,120]
[340694118,1729691446655,-500.0,0.00049989,120]
[340694119,1729691446664,-500.0,0.00049989,120]
[340694120,1729691446674,-500.0,0.00049989,120]
[340694121,1729691446683,-1108.74,0.00049989,120]
[340694122,1729691446693,-500.0,0.00049989,120]
[340694123,1729691446703,-662.72,0.00049989,120]
[340694124,1729691446712,-500.0,0.00049989,120]
[340694125,1729691446722,-503.11285663,0.00049989,120]
[340694126,1729691446731,-500.0,0.00049989,120]
[340694127,1729691446741,-500.0,0.00049989,120]
[340694128,1729691446750,-500.0,0.00049989,120]
[340694129,1729691446760,-500.0,0.00049989,120]
[340694130,1729691446769,-500.0,0.00049989,120]
[340694131,1729691446779,-513.83,0.00049989,120]
[340694132,1729691446788,-500.0,0.00049989,120]
[340694133,1729691446798,-500.0,0.00049989,120]
[340694134,1729691446808,-500.0,0.00049989,120]
[340694135,1729691446818,-500.0,0.00049989,120]
[340694136,1729691446827,-500.0,0.00049989,120]
[340694137,1729691446837,-831.37,0.00049989,120]
[340694138,1729691446846,-813.6,0.00049989,120]
[340694139,1729691446855,-517.89,0.00049989,120]
[340694140,1729691446865,-529.43421688,0.00049989,120]
[340694141,1729691446874,-292.88641924,0.00049989,120]
[340694142,1729691446883,-500.0,0.00049989,120]
[340694143,1729691446893,-500.0,0.00049989,120]
[340694144,1729691446902,-1035.99,0.00049989,120]
[340694145,1729691446911,-592.79,0.00049989,120]
[340694146,1729691446920,-500.0,0.00049989,120]
[340694147,1729691446929,-500.0,0.00049989,120]
[340694148,1729691446939,-152.322242,0.0004999,120]
[340694149,1729691446949,-151.0,0.0004999,120]
[340694150,1729691446958,-151.918009,0.0004999,120]
[340694151,1729691446967,-152.374669,0.0004999,120]
[340694152,1729691446976,-151.0,0.0004999,120]
[340694153,1729691446986,-151.682702,0.0004999,120]
[340694154,1729691446995,-151.0,0.0004999,120]
[340694155,1729691447004,-151.0,0.0004999,120]
[340694156,1729691447013,-151.0,0.0004999,120]
[340694157,1729691447023,-151.0,0.0004999,120]
[340694158,1729691447032,-151.0,0.0004999,120]
[340694159,1729691447042,-234.631191,0.0004999,120]
[340694160,1729691447052,-151.0,0.0004999,120]
[340694161,1729691447061,-171.706645,0.0004999,120]
[340694162,1729691447071,-152.84008,0.0004999,120]
[340694163,1729691447080,-151.495505,0.0004999,120]
[340694164,1729691447090,-153.519986,0.0004999,120]
[340694165,1729691447099,-151.0,0.0004999,120]
[340694166,1729691447108,-151.0,0.0004999,120]
[340694167,1729691447200,-151.0,0.0004999,120]
[340694168,1729691447209,-151.0,0.0004999,120]
[340694169,1729691447218,-152.34803,0.0004999,120]
[340694170,1729691447228,-151.0,0.0004999,120]
[340694171,1729691447242,-151.0,0.0004999,120]
[340694172,1729691447251,-290.518608,0.0004999,120]
[340694173,1729691447261,-17927.77654394,0.0004999,7]
[340694174,1729691447270,-500.0,0.00049999,2]
[340694175,1729691447279,-500.0,0.00049999,2]
[340694176,1729691447288,-500.0,0.00049999,2]
[340694177,1729691447297,-500.0,0.00049999,2]
[340694178,1729691447307,-500.0,0.00049999,2]
[340694179,1729691447315,-791.35,0.00049999,120]
[340694180,1729691447325,-791.35,0.00049999,120]
[340694181,1729691447335,-791.35,0.00049999,120]
[340694182,1729691447344,-791.35,0.00049999,120]
[340694183,1729691447353,-791.35,0.00049999,120]
[340694184,1729691447362,-375.0,0.00049999,14]
[340694185,1729691447372,-151.0,0.00049999,120]
[340694186,1729691447381,-1500.0,0.00049999,120]
[340694187,1729691447390,-500.0,0.00049999,120]
[340694188,1729691447400,-500.0,0.00049999,120]
[340694189,1729691447409,-500.0,0.00049999,120]
[340694190,1729691447419,-500.0,0.00049999,120]
[340694191,1729691447428,-300.0,0.0005,120]
[340694192,1729691447438,-273990.0,0.0005,120]
[340694193,1729691447447,-500000.0,0.0005,120]
[340694194,1729691447456,-250000.0,0.0005,120]
[340694195,1729691447465,-153.352109,0.0005,120]
[340694196,1729691447474,-2000.0,0.0005,120]
[340694197,1729691447483,-153.16967,0.0005,120]
[340694198,1729691447494,-151.0,0.0005,120]
[340694199,1729691447503,-200.988364,0.0005,120]
[340694200,1729691447512,-232.556533,0.0005,120]
[340694201,1729691447522,-152.689059,0.0005,120]
[340694202,1729691447531,-190.56861,0.0005,120]
[340694203,1729691447541,-151.0,0.0005,120]
[340694204,1729691447550,-151.0,0.0005,120]
[340694205,1729691447560,-151.0,0.0005,120]
[340694206,1729691447569,-151.0,0.0005,120]
[340694207,1729691447582,-151.329135,0.0005,120]
[340694208,1729691447591,-152.886078,0.0005,120]
[340694209,1729691447600,-151.0,0.0005,120]
[340694210,1729691447609,-151.0,0.0005,120]
[340694211,1729691447620,-151.0,0.0005,120]
[340694212,1729691447629,-153.243253,0.0005,120]
[340694213,1729691447638,-151.0,0.0005,120]
[340694214,1729691447647,-151.0,0.0005,120]
[340694215,1729691447657,-151.0,0.0005,120]
[340694216,1729691447666,-206.167162,0.0005,120]
[340694217,1729691447675,-151.0,0.0005,120]
[340694218,1729691447684,-151.0,0.0005,120]
[340694219,1729691447693,-151.0,0.0005,120]
[340694220,1729691447703,-284.482408,0.0005,120]
[340694221,1729691447711,-151.0,0.0005,120]
[340694222,1729691447721,-151.0,0.0005,120]
[340694223,1729691447730,-151.0,0.0005,120]
[340694224,1729691447740,-151.0,0.0005,120]
[340694225,1729691447750,-151.0,0.0005,120]
[340694226,1729691447759,-151.0,0.0005,120]
[340694227,1729691447768,-151.0,0.0005,120]
[340694228,1729691447777,-151.0,0.0005,120]
[340694229,1729691447786,-186.79643,0.0005,120]
[340694230,1729691447797,-163.234892,0.0005,120]
[340694231,1729691447807,-1934.131835,0.0005,120]
[340694232,1729691447818,-1934.131835,0.0005,120]
[340694233,1729691447828,-1934.131835,0.0005,120]
[340694234,1729691447839,-1934.131835,0.0005,120]
[340694235,1729691447849,-1934.131835,0.0005,120]
[340694236,1729691447859,-1934.131835,0.0005,120]
[340694237,1729691447868,-756.0,0.0005,10]
[340694238,1729691447877,-169.56,0.00050024,120]
[340694239,1729691447886,-500.0,0.00050063,2]
[340694240,1729691447895,-500.0,0.00050072,120]
[340694241,1729691447904,-500.0,0.00050072,120]
[340694242,1729691447913,-500.0,0.00050072,120]
[340694243,1729691447922,-778.87,0.00050072,120]
[340694244,1729691447932,-500.0,0.00050072,120]
[340694245,1729691447941,-1806.21,0.00050072,120]
[340694246,1729691447950,-500.0,0.00050072,120]
[340694247,1729691447959,-500.0,0.00050072,120]
[340694248,1729691447968,-764.74,0.00050072,120]
[340694249,1729691447977,-500.0,0.00050072,120]
[340694250,1729691447988,-500.0,0.00050072,120]
[340694251,1729691447997,-500.0,0.00050072,120]
[340694252,1729691448005,-200.0,0.00050072,120]
[340694253,1729691448015,-804.5,0.00050072,120]
[340694254,1729691448024,-500.0,0.00050072,120]
[340694255,1729691448034,-500.0,0.00050072,120]
[340694256,1729691448043,-500.0,0.00050072,120]
[340694257,1729691448052,-670.88,0.00050072,120]
[340694258,1729691448061,-1130.12,0.00050072,120]
[340694259,1729691448070,-500.0,0.00050072,120]
[340694260,1729691448080,-500.0,0.00050072,120]
[340694261,1729691448089,-578.29,0.00050072,120]
[340694262,1729691448098,-500.0,0.00050072,120]
[340694263,1729691448107,-326.01793477,0.00050072,120]
[340694264,1729691448116,-500.0,0.00050072,120]
[340694265,1729691448125,-1174.55,0.00050072,120]
[340694266,1729691448135,-500.0,0.00050072,120]
[340694267,1729691448144,-500.0,0.00050072,120]
[340694268,1729691448154,-500.0,0.00050072,120]
[340694269,1729691448163,-1183.75,0.00050072,120]
[340694270,1729691448172,-540.54922851,0.00050072,120]
[340694271,1729691448181,-898.47,0.00050072,120]
[340694272,1729691448190,-500.0,0.00050072,120]
[340694273,1729691448200,-500.0,0.00050072,120]
[340694274,1729691448209,-500.0,0.00050072,120]
[340694275,1729691448218,-500.0,0.00050072,120]
[340694276,1729691448227,-500.0,0.00050072,120]
[340694277,1729691448238,-546.42,0.00050072,120]
[340694278,1729691448247,-735.75,0.00050072,120]
[340694279,1729691448257,-893.45,0.00050072,120]
[340694280,1729691448267,-500.0,0.00050072,120]
[340694281,1729691448276,-1426.42,0.00050072,120]
[340694282,1729691448285,-500.0,0.00050072,120]
[340694283,1729691448295,-500.0,0.00050072,120]
[340694284,1729691448304,-500.0,0.00050072,120]
[340694285,1729691448313,-500.0,0.00050072,120]
[340694286,1729691448326,-500.0,0.00050072,120]
[340694287,1729691448336,-500.0,0.00050072,120]
[340694288,1729691448345,-500.0,0.00050072,120]
[340694289,1729691448354,-500.0,0.00050072,120]
[340694290,1729691448363,-500.0,0.00050072,120]
[340694291,1729691448373,-500.0,0.00050072,120]
[340694292,1729691448382,-500.0,0.00050072,120]
[340694293,1729691448391,-1971.1,0.00050072,120]
[340694294,1729691448400,-629.42,0.00050072,120]
[340694295,1729691448410,-658.24,0.00050072,120]
[340694296,1729691448419,-500.0,0.00050072,120]
[340694297,1729691448429,-500.0,0.00050072,120]
[340694298,1729691448439,-500.0,0.00050072,120]
[340694299,1729691448449,-1465.85,0.00050072,120]
[340694300,1729691448458,-500.0,0.00050072,120]
[340694301,1729691448467,-500.0,0.00050072,120]
[340694302,1729691448476,-500.0,0.00050072,120]
[340694303,1729691448486,-3529.23,0.00050072,120]
[340694304,1729691448495,-500.0,0.00050072,120]
[340694305,1729691448504,-500.0,0.00050072,120]
[340694306,1729691448514,-3378.78,0.00050072,120]
[340694307,1729691448523,-500.0,0.00050072,120]
[340694308,1729691448532,-322.8419511,0.00050072,2]
[340694309,1729691448542,-820.43,0.00050072,120]
[340694310,1729691448551,-500.0,0.00050072,120]
[340694311,1729691448560,-500.0,0.00050072,120]
[340694312,1729691448569,-500.0,0.00050072,120]
[340694313,1729691448579,-500.0,0.00050072,120]
[340694314,1729691448588,-500.0,0.00050072,120]
[340694315,1729691448598,-3392.88,0.00050072,120]
[340694316,1729691448607,-2064.61,0.00050072,120]
[340694317,1729691448616,-500.0,0.00050072,120]
[340694318,1729691448625,-500.0,0.00050072,120]
[340694319,1729691448634,-500.0,0.00050072,120]
[340694320,1729691448644,-1522.52,0.00050072,120]
[340694321,1729691448653,-842.41,0.00050072,120]
[340694322,1729691448662,-500.0,0.00050072,120]
[340694323,1729691448672,-500.0,0.00050072,120]
[340694324,1729691448681,-500.0,0.00050072,120]
[340694325,1729691448690,-508.44,0.00050072,120]
[340694326,1729691448699,-500.0,0.00050072,120]
[340694327,1729691448708,-15186.45508352,0.00050072,2]
[340694328,1729691448717,-1222.32,0.00050072,120]
[340694329,1729691448726,-500.0,0.00050072,120]
[340694330,1729691448735,-500.0,0.00050072,120]
[340694331,1729691448745,-500.0,0.00050072,120]
[340694332,1729691448755,-500.0,0.00050072,120]
[340694333,1729691448764,-500.0,0.00050072,120]
[340694334,1729691448773,-2025.07,0.00050072,120]
[340694335,1729691448782,-500.0,0.00050072,120]
[340694336,1729691448792,-762.17,0.00050072,120]
[340694337,1729691448801,-500.0,0.00050072,120]
[340694338,1729691448810,-500.0,0.00050072,120]
[340694339,1729691448819,-500.0,0.00050072,120]
[340694340,1729691448829,-500.0,0.00050072,120]
[340694341,1729691448838,-500.0,0.00050072,120]
[340694342,1729691448847,-500.0,0.00050072,120]
[340694343,1729691448856,-534.34,0.00050072,120]
[340694344,1729691448865,-8644.32,0.00050072,120]
[340694345,1729691448874,-500.0,0.00050072,120]
[340694346,1729691448884,-983.41,0.00050072,120]
[340694347,1729691448893,-500.0,0.00050072,120]
[340694348,1729691448902,-568.51,0.00050072,120]
[340694349,1729691448911,-500.0,0.00050072,120]
[340694350,1729691448921,-500.0,0.00050072,120]
[340694351,1729691448930,-500.0,0.00050072,120]
[340694352,1729691448939,-500.0,0.00050072,120]
[340694353,1729691448949,-500.0,0.00050072,120]
[340694354,1729691448958,-500.0,0.00050072,120]
[340694355,1729691448967,-500.0,0.00050072,120]
[340694356,1729691448976,-500.0,0.00050072,120]
[340694357,1729691448986,-500.0,0.00050072,120]
[340694358,1729691448997,-500.0,0.00050072,120]
[340694359,1729691449006,-500.0,0.00050172,120]
[340694360,1729691449015,-500.0,0.00050172,120]